bitfinex/quotes_SOLUSD_20240826
["timestamp","ask_amount","ask_price","bid_price","bid_amount"]
[1724631705000,1.56982022,159.26,159.18,20.0]
[1724631705213,1.56982022,159.26,159.16,20.0]
[1724631705522,1.56982022,159.26,159.17,45.0]
[1724631705725,1.56982022,159.26,159.18,20.0]
[1724631706208,1.56982022,159.26,159.16,20.0]
[1724631706714,15.11,159.25,159.16,20.0]
[1724631706893,1.57020584,159.24,159.16,20.0]
[1724631707415,16.68021902,159.25,159.16,20.0]
[1724631709600,15.11,159.25,159.16,20.0]
[1724631711114,15.11,159.25,159.17,24.26040235]
[1724631711320,15.11,159.25,159.18,20.0]
[1724631712700,1.57004363,159.24,159.18,20.0]
[1724631712899,1.57004363,159.24,159.15,32.90661225]
[1724631712900,1.57026844,159.23,159.16,20.0]
[1724631713203,1.5703003,159.24,159.16,20.0]
[1724631714022,1.57023033,159.24,159.16,20.0]
[1724631714224,6.2738,159.23,159.16,20.0]
[1724631714423,7.84408482,159.23,159.16,20.0]
[1724631714616,7.84408482,159.23,159.14,20.0]
[1724631714922,7.84408482,159.23,159.13,40.52380235]
[1724631715125,7.84408482,159.23,159.14,45.0]
[1724631715309,1.57028535,159.22,159.14,45.0]
[1724631716055,1.57028535,159.22,159.11,6.67603141]
[1724631716746,1.57028535,159.22,159.1,1.92582783]
[1724631716923,1.57028535,159.22,159.11,24.26040235]
[1724631717365,6.2738,159.23,159.13,24.26040235]
[1724631717526,6.2738,159.23,159.15,24.26040235]
[1724631717731,6.2738,159.23,159.16,20.0]
[1724631720453,6.2738,159.23,159.17,69.26040235]
[1724631720669,6.2738,159.23,159.18,20.0]
[1724631724079,6.2738,159.23,159.19,1.25454126]
[1724631724280,6.2738,159.23,159.18,20.0]
[1724631724655,6.2738,159.23,159.19,24.26040235]
[1724631724852,6.2066,159.27,159.2,21.25430441]
[1724631725182,6.2066,159.27,159.2,20.0]
[1724631726680,6.2066,159.27,159.21,24.26040235]
[1724631726875,6.2066,159.27,159.22,20.0]
[1724631727561,1.56983464,159.26,159.18,20.0]
[1724631728181,1.56983464,159.26,159.16,20.0]
[1724631728554,46.56983464,159.26,159.13,24.26040235]
[1724631728750,15.9462,159.25,159.13,24.26040235]
[1724631728949,1.57034965,159.24,159.13,24.26040235]
[1724631729148,1.57034965,159.24,159.13,33.02804274]
[1724631729589,1.57031122,159.23,159.13,8.76764039]
[1724631729897,6.4187,159.22,159.09,33.02804274]
[1724631730052,1.57058784,159.21,159.09,33.02804274]
[1724631731159,7.98927662,159.22,159.11,24.26040235]
[1724631731478,7.98927662,159.22,159.12,65.0]
[1724631732475,6.4187,159.22,159.12,65.0]
[1724631734062,6.4187,159.22,159.13,34.73848037]
[1724631734268,6.4187,159.22,159.14,75.47807802]
[1724631734573,6.4187,159.22,159.15,10.47807802]
[1724631734769,6.4187,159.22,159.16,30.47807802]
[1724631734957,6.4187,159.22,159.16,20.0]
[1724631735162,6.4187,159.22,159.15,20.0]
[1724631737858,6.4187,159.22,159.15,44.26040235]
[1724631738192,6.4187,159.22,159.16,46.25535331]
[1724631738355,6.4187,159.22,159.17,20.0]
[1724631738558,6.4187,159.22,159.18,1.25532244]
[1724631739555,15.9462,159.25,159.18,1.25532244]
[1724631739556,15.9462,159.25,159.19,24.26040235]
[1724631739755,6.0234,159.26,159.21,24.26040235]
[1724631739970,6.0234,159.26,159.22,20.0]
[1724631740164,6.0234,159.26,159.2,20.0]
[1724631740463,6.0234,159.26,159.21,45.0]
[1724631740686,6.0234,159.26,159.22,20.0]
[1724631741295,6.0234,159.26,159.2,20.0]
[1724631742288,6.0234,159.26,159.21,46.25454086]
[1724631742497,6.0234,159.26,159.22,20.0]
[1724631748790,6.0234,159.26,159.2,20.0]
[1724631749379,6.0234,159.26,159.21,24.26040235]
[1724631749593,15.9018,159.29,159.22,21.25397264]
[1724631749899,15.9018,159.29,159.22,20.0]
[1724631750197,15.9018,159.29,159.23,45.0]
[1724631750395,15.9018,159.29,159.24,20.0]
[1724631755198,17.47130193,159.29,159.24,20.0]
[1724631755395,17.47130193,159.29,159.21,20.0]
[1724631755903,15.9018,159.29,159.21,20.0]
[1724631757700,15.9018,159.29,159.22,1.25427113]
[1724631758995,17.47149387,159.29,159.21,20.0]
[1724631759201,17.47149387,159.29,159.19,1.92699877]
[1724631759390,41.73189622,159.29,159.17,24.26040235]
[1724631760577,41.73189622,159.29,159.18,65.0]
[1724631761021,17.47149387,159.29,159.18,65.0]
[1724631762279,6.2662,159.28,159.17,1.97767816]
[1724631762503,1.57014209,159.27,159.14,33.02804274]
[1724631762807,6.2662,159.25,159.14,34.99918542]
[1724631763106,6.2662,159.25,159.15,10.02316197]
[1724631763688,6.2662,159.25,159.16,70.5157981]
[1724631763886,6.2662,159.25,159.16,79.28343849]
[1724631764085,6.2662,159.25,159.17,20.0]
[1724631764280,6.2662,159.25,159.18,46.25500559]
[1724631764683,6.2662,159.25,159.19,20.0]
[1724631766119,1.56999596,159.24,159.19,20.0]
[1724631766318,6.2662,159.25,159.17,20.0]
[1724631768392,16.3798,159.23,159.17,20.0]
[1724631769906,16.3798,159.23,159.18,1.25534697]
[1724631770103,16.3798,159.23,159.17,20.0]
[1724631770305,16.3798,159.23,159.19,1.25527349]
[1724631770513,16.3798,159.23,159.17,20.0]
[1724631772017,16.3798,159.23,159.18,1.25550728]
[1724631772726,16.3798,159.23,159.17,20.0]
[1724631773100,16.3798,159.23,159.15,20.0]
[1724631773423,1.57033404,159.22,159.15,20.0]
[1724631774030,1.57033404,159.22,159.15,29.70883072]
[1724631775234,16.3798,159.23,159.15,29.70883072]
[1724631775931,17.95021243,159.23,159.15,20.0]
[1724631776134,17.95021243,159.23,159.14,31.6799734]
[1724631776437,17.95021243,159.23,159.16,9.70883072]
[1724631776725,16.3798,159.23,159.17,21.25574925]
[1724631776905,16.3798,159.23,159.17,20.0]
[1724631780733,6.2662,159.25,159.2,9.70883072]
[1724631780916,6.2662,159.25,159.21,20.0]
[1724631781108,1.57012475,159.24,159.21,20.0]
[1724631781534,7.83639534,159.25,159.18,20.0]
[1724631782012,6.2662,159.25,159.19,9.70883072]
[1724631782214,6.2662,159.25,159.21,9.70883072]
[1724631784241,6.2662,159.25,159.22,20.0]
[1724631785858,6.197,159.29,159.23,9.70883072]
[1724631786153,6.197,159.29,159.25,9.70883072]
[1724631787542,16.3798,159.31,159.25,9.70883072]
[1724631787746,16.3798,159.31,159.26,65.0]
[1724631787939,6.2922,159.33,159.27,9.70883072]
[1724631788118,6.2922,159.33,159.29,9.70883072]
[1724631788320,6.2922,159.33,159.3,20.0]
[1724631788644,6.0611,159.38,159.31,9.70883072]
[1724631788810,6.0611,159.38,159.33,9.70883072]
[1724631790012,6.0611,159.38,159.31,24.21778314]
[1724631790208,6.0611,159.38,159.32,20.0]
[1724631794049,6.198,159.42,159.33,1.25163478]
[1724631794350,6.198,159.42,159.33,24.21778314]
[1724631794548,6.198,159.42,159.34,20.0]
[1724631795736,6.198,159.42,159.35,45.0]
[1724631795919,6.198,159.42,159.36,20.0]
[1724631797040,7.76624077,159.42,159.36,20.0]
[1724631797425,7.76624077,159.42,159.32,20.0]
[1724631797630,7.76624077,159.42,159.33,45.0]
[1724631797855,7.76624077,159.42,159.34,20.0]
[1724631799057,7.76624077,159.42,159.32,20.0]
[1724631800032,7.76624077,159.42,159.31,1.97340354]
[1724631800033,31.98402391,159.42,159.31,1.97340354]
[1724631800238,45.0,159.41,159.3,20.0]
[1724631800539,45.0,159.41,159.29,16.0742]
[1724631800540,1.56889238,159.4,159.29,16.0742]
[1724631800734,1.56889244,159.39,159.29,24.84184039]
[1724631800930,30.41578314,159.42,159.29,24.84184039]
[1724631801159,1.56873522,159.41,159.3,8.76764039]
[1724631801734,1.56873522,159.41,159.31,20.0]
[1724631802241,24.21778314,159.4,159.31,20.0]
[1724631802459,46.56873522,159.41,159.28,1.92633443]
[1724631802460,6.561,159.37,159.28,1.92633443]
[1724631802770,1.56916914,159.36,159.26,24.21778314]
[1724631803574,1.56916914,159.36,159.25,24.28824039]
[1724631803773,1.56916914,159.36,159.26,65.0]
[1724631803940,1.56916914,159.36,159.27,8.76764039]
[1724631804135,1.56916914,159.36,159.28,20.0]
[1724631805468,22.3249,159.37,159.28,52.98542353]
[1724631805671,22.3249,159.37,159.29,45.0]
[1724631805867,6.561,159.37,159.3,20.0]
[1724631809141,1.56886875,159.36,159.3,20.0]
[1724631809456,1.56886875,159.36,159.27,20.0]
[1724631809760,6.561,159.37,159.28,69.21778314]
[1724631809986,6.561,159.37,159.29,20.0]
[1724631810301,17.94856317,159.41,159.3,69.21778314]
[1724631810468,22.6945,159.41,159.31,20.0]
[1724631810669,22.6945,159.41,159.32,45.0]
[1724631810991,22.6945,159.41,159.33,20.0]
[1724631812075,1.56855222,159.4,159.33,20.0]
[1724631813291,9.68790875,159.38,159.33,20.0]
[1724631813497,9.68790875,159.38,159.29,20.0]
[1724631813996,9.68790875,159.38,159.3,1.25255285]
[1724631814195,9.68790875,159.38,159.29,20.0]
[1724631816115,1.56890369,159.4,159.29,20.0]
[1724631816289,1.56889216,159.39,159.28,20.0]
[1724631816597,6.6144,159.38,159.29,1.25255478]
[1724631817569,6.6144,159.38,159.28,1.25299684]
[1724631817769,6.6144,159.38,159.27,20.0]
[1724631818094,8.18354163,159.38,159.27,52.99537497]
[1724631818397,6.6144,159.38,159.28,53.76764039]
[1724631818790,6.6144,159.38,159.29,20.0]
[1724631818995,6.6144,159.38,159.3,45.0]
[1724631819170,6.6144,159.38,159.31,20.0]
[1724631821201,6.6144,159.38,159.32,45.0]
[1724631821399,6.6144,159.38,159.33,20.0]
[1724631824267,6.6144,159.38,159.31,1.99490289]
[1724631824470,6.6144,159.38,159.31,48.90109692]
[1724631824681,6.6144,159.38,159.32,20.0]
[1724631828198,6.6144,159.38,159.33,3.9009812]
[1724631829104,6.6144,159.38,159.33,3.9009806]
[1724631829312,6.6144,159.38,159.33,9.05851663]
[1724631829477,6.6144,159.38,159.34,20.0]
[1724631830092,6.6144,159.38,159.33,3.9009806]
[1724631830293,6.6144,159.38,159.33,5.15761906]
[1724631830605,1.56877311,159.37,159.33,5.15761906]
[1724631830907,6.6144,159.38,159.33,3.90129838]
[1724631831203,6.6144,159.38,159.33,5.1579194]
[1724631831381,6.6144,159.38,159.31,11.72441039]
[1724631831577,6.6144,159.38,159.32,26.4100736]
[1724631831784,6.6144,159.38,159.33,11.72441039]
[1724631832002,6.6144,159.38,159.34,5.15329541]
[1724631832693,6.6144,159.38,159.34,1.25199703]
[1724631833007,6.6144,159.38,159.34,3.90117988]
[1724631833302,6.6144,159.38,159.35,3.90117988]
[1724631833483,6.6144,159.38,159.32,30.46760811]
[1724631833805,6.6144,159.38,159.33,30.46760811]
[1724631834016,6.6144,159.38,159.3,20.0]
[1724631834017,6.6144,159.38,159.34,3.90127161]
[1724631834303,6.6144,159.38,159.31,6.56631117]
[1724631834489,6.6144,159.38,159.32,30.46756853]
[1724631834677,6.6144,159.38,159.33,30.46756853]
[1724631834876,6.6144,159.38,159.34,3.90125736]
[1724631835092,6.6144,159.38,159.35,3.901219]
[1724631835281,6.6144,159.38,159.32,30.46773239]
[1724631835499,6.6144,159.38,159.33,10.46773239]
[1724631835813,6.6144,159.38,159.34,3.901219]
[1724631835989,6.6144,159.38,159.35,3.901219]
[1724631836191,6.6144,159.38,159.32,20.0]
[1724631836388,6.6144,159.38,159.34,3.90109396]
[1724631836803,6.6144,159.38,159.35,3.90109396]
[1724631836983,6.6144,159.38,159.33,6.56619568]
[1724631837183,6.6144,159.38,159.34,3.90107224]
[1724631837394,6.6144,159.38,159.35,3.90107224]
[1724631837603,6.6144,159.38,159.33,6.56619568]
[1724631837802,6.6144,159.38,159.34,3.90107224]
[1724631838109,6.6144,159.38,159.35,3.90107224]
[1724631838402,6.6144,159.38,159.33,6.56619568]
[1724631841828,6.6144,159.38,159.33,6.5660105]
[1724631842115,9.68869655,159.36,159.33,6.5660105]
[1724631842279,1.56878335,159.37,159.27,16.25470705]
[1724631842485,1.56878335,159.37,159.28,6.5660105]
[1724631842696,1.56878335,159.37,159.29,6.5660105]
[1724631842899,1.56878335,159.37,159.3,6.5660105]
[1724631843111,1.56878335,159.37,159.28,6.5660105]
[1724631843310,1.56878335,159.37,159.29,6.5660105]
[1724631843629,1.56878335,159.37,159.3,26.5660105]
[1724631843816,8.18342949,159.38,159.31,6.5660105]
[1724631844000,6.6144,159.38,159.32,6.5660105]
[1724631844203,6.6144,159.38,159.33,6.5660105]
[1724631844406,17.94859221,159.41,159.33,9.68869655]
[1724631844727,16.3798,159.41,159.35,9.68869655]
[1724631844892,6.0796,159.42,159.37,9.68869655]
[1724631845091,6.0796,159.42,159.38,20.0]
[1724631845430,15.7691,159.45,159.38,20.78521416]
[1724631845586,15.7691,159.45,159.39,9.68869655]
[1724631845780,17.33720082,159.45,159.39,16.25280054]
[1724631845989,17.33720082,159.45,159.38,20.0]
[1724631846294,17.33720082,159.45,159.36,20.0]
[1724631846502,17.33720082,159.45,159.37,6.56433149]
[1724631846812,17.33720082,159.45,159.38,26.56433149]
[1724631846987,17.33720082,159.45,159.39,6.56433149]
[1724631847306,17.33720082,159.45,159.37,6.56433149]
[1724631847527,17.33720082,159.45,159.38,20.0]
[1724631847729,15.7691,159.45,159.38,20.0]
[1724631847905,1.56819396,159.44,159.38,26.56433149]
[1724631848105,1.56819396,159.44,159.38,20.0]
[1724631848317,1.56819396,159.44,159.36,20.0]
[1724631848523,1.56819396,159.44,159.36,6.56419127]
[1724631848806,1.56819396,159.44,159.37,20.0]
[1724631849328,1.56819396,159.44,159.35,46.16712382]
[1724631849503,1.56819396,159.44,159.35,44.20301683]
[1724631850113,1.56819396,159.44,159.35,20.0]
[1724631850304,6.1062,159.42,159.34,20.0]
[1724631850506,1.56872677,159.41,159.31,15.1499]
[1724631851808,6.1062,159.42,159.32,20.0]
[1724631852132,6.1062,159.42,159.29,30.87904824]
[1724631852133,25.77174328,159.41,159.29,6.67603141]
[1724631852535,6.1062,159.38,159.25,24.20301683]
[1724631852716,1.56911115,159.37,159.27,1.94716797]
[1724631852919,1.56911115,159.37,159.28,8.76764039]
[1724631853304,6.1062,159.38,159.28,8.76764039]
[1724631853518,7.67512156,159.38,159.29,24.20301683]
[1724631853718,6.1062,159.38,159.3,65.0]
[1724631854910,7.67497855,159.38,159.3,65.0]
[1724631855427,6.1062,159.38,159.3,65.0]
[1724631856529,6.1062,159.38,159.31,24.20301683]
[1724631856725,6.1062,159.38,159.32,20.0]
[1724631858708,6.1062,159.42,159.33,69.20301683]
[1724631861023,6.1062,159.42,159.34,20.0]
[1724631861223,6.2708,159.47,159.34,20.0]
[1724631861224,6.5794,159.46,159.37,24.20301683]
[1724631861427,6.5794,159.5,159.43,24.20301683]
[1724631861628,6.5794,159.5,159.45,24.20301683]
[1724631861827,0.835492,159.54,159.47,24.20301683]
[1724631862025,0.835492,159.54,159.48,66.24802846]
[1724631862225,0.835492,159.54,159.49,1.247976]
[1724631863331,0.835492,159.54,159.48,20.0]
[1724631864043,0.835492,159.54,159.46,20.0]
[1724631864535,26.60572327,159.54,159.42,6.67603141]
[1724631864738,25.03850883,159.54,159.43,1.24757769]
[1724631864937,0.835492,159.54,159.43,24.20301683]
[1724631865123,2.40287088,159.54,159.43,24.20301683]
[1724631866043,2.40287088,159.54,159.44,45.0]
[1724631866350,2.40287088,159.54,159.45,44.20301683]
[1724631866351,0.835492,159.54,159.45,44.20301683]
[1724631866539,0.835492,159.54,159.47,24.20301683]
[1724631866719,0.835492,159.54,159.48,21.24791596]
[1724631867849,0.835492,159.54,159.48,20.0]
[1724631868047,2.402705,159.54,159.48,20.0]
[1724631868224,2.402705,159.54,159.46,20.0]
[1724631868544,2.402705,159.54,159.45,20.0]
[1724631868845,0.835492,159.54,159.45,20.0]
[1724631869043,1.56749863,159.53,159.45,20.0]
[1724631869242,1.56749863,159.53,159.41,24.20301683]
[1724631869423,1.56749863,159.53,159.42,45.0]
[1724631869622,46.56749863,159.53,159.42,45.0]
[1724631870235,46.56749863,159.53,159.41,24.20301683]
[1724631870445,46.56749863,159.53,159.42,20.0]
[1724631871026,30.36011683,159.52,159.39,48.42775722]
[1724631871220,1.56789186,159.51,159.39,32.97065722]
[1724631871635,1.56789186,159.51,159.41,24.20301683]
[1724631872223,1.56789186,159.51,159.42,20.0]
[1724631872957,16.3798,159.49,159.4,20.0]
[1724631873140,1.56804717,159.48,159.38,20.0]
[1724631873330,16.3798,159.49,159.38,20.0]
[1724631874057,17.94778257,159.49,159.38,20.0]
[1724631874248,17.94778257,159.49,159.39,45.0]
[1724631874425,17.94778257,159.49,159.4,20.0]
[1724631876239,1.56782196,159.48,159.4,20.0]
[1724631877545,16.3798,159.49,159.4,20.0]
[1724631877756,17.94777568,159.49,159.4,20.0]
[1724631879345,16.3798,159.49,159.4,20.0]
[1724631879825,17.94762667,159.49,159.4,20.0]
[1724631882225,16.3798,159.49,159.41,45.0]
[1724631882430,16.3798,159.49,159.42,20.0]
[1724631883764,1.56773148,159.48,159.42,20.0]
[1724631883939,1.56773148,159.48,159.38,20.0]
[1724631884129,17.94768623,159.49,159.39,45.0]
[1724631884331,17.94768623,159.49,159.4,20.0]
[1724631884571,1.56783864,159.48,159.4,20.0]
[1724631884941,6.5485,159.47,159.4,20.0]
[1724631885171,1.56803885,159.46,159.4,20.0]
[1724631885868,6.5485,159.47,159.4,20.0]
[1724631886071,1.5680383,159.46,159.4,20.0]
[1724631886971,6.5485,159.47,159.4,20.0]
[1724631887169,6.5485,159.47,159.41,1.25438921]
[1724631890151,6.5485,159.47,159.4,20.0]
[1724631890357,6.0485,159.47,159.4,20.0]
[1724631890566,6.0485,159.47,159.41,46.25417694]
[1724631890764,6.0485,159.47,159.42,20.0]
[1724631890949,6.0485,159.47,159.43,1.25418324]
[1724631891278,45.0,159.53,159.43,1.25418324]
[1724631891279,16.3798,159.53,159.45,24.20301683]
[1724631891584,16.3798,159.53,159.46,20.49028353]
[1724631891871,16.3798,159.53,159.47,45.0]
[1724631892074,16.3798,159.53,159.48,21.25371806]
[1724631893090,16.3798,159.53,159.48,20.0]
[1724631893257,1.56733793,159.52,159.44,20.0]
[1724631893583,6.5356,159.51,159.44,20.0]
[1724631893755,6.5356,159.51,159.43,21.93470803]
[1724631893953,6.5356,159.51,159.44,45.0]
[1724631894170,6.5356,159.51,159.45,20.0]
[1724631894347,6.5356,159.51,159.46,45.0]
[1724631894553,6.5356,159.51,159.47,20.71134358]
[1724631895377,6.5356,159.51,159.48,1.25377734]
[1724631895963,6.5356,159.51,159.49,1.25377766]
[1724631896270,0.835492,159.54,159.48,45.0]
[1724631896578,0.835492,159.54,159.49,21.25362796]
[1724631898565,0.835492,159.54,159.5,1.25355919]
[1724631898758,0.835492,159.54,159.5,46.25355919]
[1724631898961,0.835492,159.54,159.51,20.0]
[1724631900066,0.835492,159.54,159.48,20.0]
[1724631900457,2.402717,159.54,159.46,20.0]
[1724631900882,0.835492,159.54,159.44,20.0]
[1724631901058,0.835492,159.54,159.48,24.20301683]
[1724631901273,0.835492,159.54,159.49,66.2534886]
[1724631901462,0.835492,159.54,159.5,24.20301683]
[1724631901662,0.835492,159.54,159.51,21.25349377]
[1724631901977,0.835492,159.54,159.52,1.25349555]
[1724631904371,0.835492,159.54,159.52,46.25349555]
[1724631904579,0.835492,159.54,159.53,20.0]
[1724631904963,0.835492,159.54,159.53,65.0]
[1724631906705,0.835492,159.54,159.53,20.0]
[1724631906994,0.835492,159.54,159.51,20.0]
[1724631907193,0.835492,159.54,159.52,3.89589538]
[1724631907490,0.835492,159.54,159.53,0.35321777]
[1724631907699,0.835492,159.54,159.52,21.25337569]
[1724631908365,0.835492,159.54,159.53,3.89540662]
[1724631909202,0.835492,159.54,159.52,21.25337569]
[1724631909378,0.835492,159.54,159.53,3.89540662]
[1724631910284,0.835492,159.54,159.52,20.0]
[1724631910984,0.835492,159.54,159.53,1.25335335]
[1724631911213,0.835492,159.54,159.52,20.0]
[1724631911378,0.835492,159.54,159.5,26.55733271]
[1724631911564,0.835492,159.54,159.5,20.0]
[1724631911769,0.835492,159.54,159.47,26.55798828]
[1724631911975,0.835492,159.54,159.48,28.09910534]
[1724631912183,0.835492,159.54,159.5,24.20301683]
[1724631912491,0.835492,159.54,159.51,23.89563573]
[1724631912695,0.835492,159.54,159.51,20.0]
[1724631914871,0.835492,159.54,159.48,20.0]
[1724631915071,0.835492,159.54,159.49,3.89613117]
[1724631916690,0.835492,159.54,159.48,20.0]
[1724631916691,6.5394,159.53,159.48,20.0]
[1724631916897,6.5394,159.53,159.44,24.20301683]
[1724631917189,6.5394,159.53,159.46,3.89645594]
[1724631917964,6.5394,159.53,159.47,45.0]
[1724631918275,6.5394,159.53,159.48,20.0]
[1724631918587,6.5394,159.53,159.46,20.0]
[1724631918789,1.56743991,159.52,159.43,6.67603141]
[1724631918981,1.56743991,159.52,159.47,3.89683895]
[1724631919183,1.56743991,159.52,159.42,5.88564189]
[1724631919905,25.77045674,159.52,159.42,5.88564189]
[1724631920191,24.20301683,159.5,159.41,3.89752295]
[1724631920397,22.2449,159.48,159.39,10.57355436]
[1724631920573,22.2449,159.48,159.39,3.89752295]
[1724631920771,6.0517,159.48,159.42,24.20301683]
[1724631921000,22.2449,159.52,159.44,24.20301683]
[1724631921306,22.2449,159.52,159.46,24.20301683]
[1724631921774,22.2449,159.52,159.47,20.0]
[1724631922282,22.2449,159.52,159.48,3.896681]
[1724631923107,22.2449,159.52,159.47,20.0]
[1724631923417,22.2449,159.52,159.45,20.0]
[1724631923578,22.2449,159.52,159.46,48.89701415]
[1724631923780,22.2449,159.52,159.47,23.89701415]
[1724631923976,22.2449,159.52,159.47,20.0]
[1724631924408,22.2449,159.52,159.48,3.89673604]
[1724631924701,22.2449,159.52,159.47,20.0]
[1724631924902,22.2449,159.52,159.45,21.25395392]
[1724631925105,22.2449,159.52,159.45,1.25395392]
[1724631925600,22.2449,159.52,159.45,21.25395392]
[1724631925785,22.2449,159.52,159.46,3.89724618]
[1724631925985,22.2449,159.52,159.47,1.2539803]
[1724631926189,22.2449,159.52,159.47,21.2539803]
[1724631926408,22.2449,159.52,159.47,20.0]
[1724631926600,22.2449,159.52,159.42,24.20301683]
[1724631926809,22.2449,159.52,159.43,68.89748684]
[1724631927107,22.2449,159.52,159.44,3.89748684]
[1724631927489,1.56756787,159.51,159.44,3.89748684]
[1724631928286,1.56756787,159.51,159.42,3.89748684]
[1724631928690,1.56756787,159.51,159.41,3.89748684]
[1724631928906,1.56756787,159.51,159.42,45.0]
[1724631929107,24.20301683,159.47,159.43,3.89748684]
[1724631929312,17.49102349,159.46,159.34,24.20301683]
[1724631929499,17.49102349,159.46,159.36,24.20301683]
[1724631929809,17.49102349,159.46,159.37,3.89835442]
[1724631929985,1.56802161,159.45,159.38,3.89835442]
[1724631930195,1.56802161,159.45,159.37,3.89835442]
[1724631930387,17.49102454,159.46,159.37,3.89835442]
[1724631930614,1.56802254,159.45,159.37,3.89835442]
[1724631931007,17.49102501,159.46,159.37,3.89835442]
[1724631931187,17.49102501,159.46,159.36,23.89835442]
[1724631931395,1.56802545,159.45,159.37,3.89835442]
[1724631931726,17.49102545,159.46,159.38,45.0]
[1724631931888,17.49102545,159.46,159.39,23.89835442]
[1724631932088,1.56802368,159.45,159.39,20.0]
[1724631933602,15.923,159.46,159.39,20.0]
[1724631933790,15.923,159.46,159.4,3.89879847]
[1724631934323,15.923,159.46,159.4,3.8987545]
[1724631934521,15.923,159.46,159.39,20.0]
[1724631936815,15.923,159.46,159.4,45.0]
[1724631937601,15.923,159.46,159.41,20.0]
[1724631938218,6.5048,159.48,159.42,46.25428538]
[1724631938398,6.5048,159.48,159.43,21.25406448]
[1724631940129,6.5048,159.48,159.44,45.0]
[1724631940312,6.5048,159.48,159.43,20.0]
[1724631946527,6.5048,159.48,159.39,20.0]
[1724631946528,8.0725813,159.48,159.39,20.0]
[1724631951734,8.0725813,159.48,159.37,1.9794361]
[1724631951933,32.27559813,159.48,159.37,48.89861956]
[1724631952134,32.27559813,159.48,159.38,3.89861956]
[1724631953430,32.27559813,159.48,159.38,23.89861956]
[1724631953631,24.20301683,159.46,159.38,20.0]
[1724631953939,1.56826102,159.45,159.32,24.20301683]
[1724631954126,1.56826102,159.45,159.34,45.0]
[1724631954318,1.56826102,159.45,159.35,3.89956926]
[1724631954642,1.56826102,159.45,159.36,45.0]
[1724631955138,1.56826102,159.45,159.37,20.0]
[1724631955341,6.103,159.44,159.37,20.0]
[1724631955517,1.56825306,159.43,159.37,20.0]
[1724631957241,6.103,159.44,159.37,20.0]
[1724631960354,1.56822685,159.43,159.37,20.0]
[1724631960531,1.56822685,159.43,159.31,22.04313141]
[1724631960741,39.86421683,159.42,159.32,3.89982272]
[1724631960921,15.6612,159.42,159.32,3.89982272]
[1724631961125,15.6612,159.42,159.36,24.20301683]
[1724631961436,15.6612,159.42,159.37,5.15438489]
[1724631961937,6.103,159.44,159.38,24.20301683]
[1724631962159,6.103,159.44,159.39,30.9328506]
[1724631962344,16.3798,159.46,159.41,9.67845014]
[1724631963461,6.1626,159.48,159.43,9.67845014]
[1724631963752,6.1626,159.48,159.44,1.25298411]
[1724631964254,6.1626,159.48,159.42,24.18276536]
[1724631964459,6.1626,159.48,159.43,65.0]
[1724631964761,6.1626,159.48,159.43,20.0]
[1724631965141,6.1626,159.48,159.41,20.0]
[1724631965671,7.73041925,159.48,159.41,20.0]
[1724631965848,7.73041925,159.48,159.4,20.0]
[1724631968355,6.1626,159.48,159.4,20.0]
[1724631970862,1.56785352,159.47,159.4,20.0]
[1724631971060,1.56785352,159.47,159.37,20.0]
[1724631971842,1.56785352,159.47,159.38,1.25599473]
[1724631972033,1.56785352,159.47,159.37,20.0]
[1724631974951,1.56785352,159.47,159.38,6.5630858]
[1724631975148,1.56785352,159.47,159.39,20.0]
[1724631975757,1.56785352,159.47,159.38,26.5630858]
[1724631975967,1.56785352,159.47,159.39,6.5630858]
[1724631976162,1.56785352,159.47,159.4,20.0]
[1724631976740,1.56785352,159.47,159.35,22.06091725]
[1724631977062,1.56785352,159.47,159.36,45.0]
[1724631977275,1.56785352,159.47,159.37,20.0]